bitfinex/quotes_ETHUSD_20250524
["timestamp","ask_amount","ask_price","bid_price","bid_amount"]
[1748110780736,4.32016097,2560.9,2560.8,43.11536114]
[1748110781150,5.14265127,2560.9,2560.8,17.06836114]
[1748110781381,5.14265127,2560.9,2560.8,43.11536114]
[1748110781694,4.32016097,2560.9,2560.8,44.5773771]
[1748110782773,4.32016097,2560.9,2560.8,44.35901596]
[1748110785740,4.32016097,2560.9,2560.8,42.897]
[1748110786186,4.32016097,2560.9,2560.8,16.85]
[1748110786476,4.32016097,2560.9,2560.8,42.899]
[1748110794009,4.32016097,2560.9,2560.8,16.85]
[1748110794214,5.91365127,2560.9,2560.8,31.196]
[1748110794386,5.91365127,2560.9,2560.8,42.899]
[1748110796305,6.06365127,2560.9,2560.8,42.899]
[1748110796701,4.47016097,2560.9,2560.8,42.899]
[1748110800213,4.47016097,2560.9,2560.8,31.196]
[1748110800415,4.47016097,2560.9,2560.8,42.899]
[1748110804122,4.47016097,2560.9,2560.8,43.11708751]
[1748110804924,4.32016097,2560.9,2560.8,45.74240065]
[1748110806021,0.05,2560.9,2560.8,45.74240065]
[1748110806192,3.95487719,2560.9,2560.8,45.74240065]
[1748110807629,1.96540032,2561.5,2560.9,0.8097]
[1748110807927,3.61395344,2561.1,2561.0,10.63711314]
[1748110808130,3.61395344,2561.1,2561.0,10.85520065]
[1748110809089,3.61395344,2561.1,2561.0,12.68261379]
[1748110809690,3.61395344,2561.1,2561.0,10.85520065]
[1748110810194,3.61395344,2561.1,2561.0,12.68261379]
[1748110811123,3.90350534,2561.8,2561.1,0.8097]
[1748110811324,3.74426579,2561.4,2561.3,0.8097]
[1748110811493,3.74426579,2561.4,2561.3,16.97811314]
[1748110812233,3.74426579,2561.4,2561.3,17.19620065]
[1748110820965,3.74426579,2561.4,2561.3,34.04320065]
[1748110832179,3.72446193,2561.6,2561.3,34.04320065]
[1748110832364,3.90392736,2561.6,2561.5,1.82741314]
[1748110833470,3.90392736,2561.6,2561.5,2.04550065]
[1748110834341,3.90392736,2561.6,2561.5,2.44203361]
[1748110838183,3.90392736,2561.6,2561.5,16.78103361]
[1748110842994,3.90392736,2561.6,2561.5,33.62603361]
[1748110845754,3.90392736,2561.6,2561.5,33.25931437]
[1748110850015,0.05,2561.9,2561.6,0.7644]
[1748110850298,0.05,2561.9,2561.8,2.2250939]
[1748110850470,0.05,2561.9,2561.8,10.2250939]
[1748110850854,0.05,2561.9,2561.8,10.44318141]
[1748110851799,0.05,2561.9,2561.8,13.94636622]
[1748110852003,0.05,2561.9,2561.8,16.57573959]
[1748110852176,0.05,2561.9,2561.8,17.12573959]
[1748110852378,0.05,2561.9,2561.8,13.22223425]
[1748110854195,0.05,2561.9,2561.8,17.12573959]
[1748110854709,0.05,2561.9,2561.8,13.22223425]
[1748110855073,0.05,2561.9,2561.8,17.12573959]
[1748110855674,0.05,2561.9,2561.8,17.49657446]
[1748110858311,0.05,2561.9,2561.8,17.12573959]
[1748110858913,0.05,2561.9,2561.8,13.22223425]
[1748110859911,0.05,2561.9,2561.8,17.12573959]
[1748110860511,0.05,2561.9,2561.8,13.22223425]
[1748110861287,3.95335298,2561.9,2561.8,24.37786088]
[1748110861493,3.95335298,2561.9,2561.8,36.07286088]
[1748110862186,3.95335298,2561.9,2561.8,2.04286088]
[1748110862387,4.71775298,2561.9,2561.8,14.55308751]
[1748110862589,5.57986344,2561.9,2561.8,26.24808751]
[1748110862913,4.71775298,2561.9,2561.8,26.24808751]
[1748110863113,4.71775298,2561.9,2561.8,28.07286088]
[1748110868334,4.71775298,2561.9,2561.8,36.07286088]
[1748110869902,4.71775298,2561.9,2561.8,24.37786088]
[1748110870103,4.71775298,2561.9,2561.8,36.07386088]
[1748110870842,4.71775298,2561.9,2561.8,34.25708751]
[1748110871000,4.71775298,2561.9,2561.8,36.08186088]
[1748110872938,4.71775298,2561.9,2561.8,24.38586088]
[1748110873257,4.71775298,2561.9,2561.8,36.08186088]
[1748110884337,4.71775298,2561.9,2561.8,52.92586088]
[1748110884901,4.71775298,2561.9,2561.8,52.70777337]
[1748110885169,3.95335298,2561.9,2561.8,52.92543456]
[1748110886728,0.05,2561.9,2561.8,53.68833456]
[1748110887128,3.95335298,2561.9,2561.8,53.68833456]
[1748110889234,3.95335298,2561.9,2561.8,55.51310793]
[1748110889235,0.05,2561.9,2561.8,55.51310793]
[1748110889431,3.90777884,2562.3,2561.9,8.0]
[1748110889659,3.90781166,2562.3,2562.2,1.82477337]
[1748110890084,3.90781166,2562.3,2562.2,2.04243456]
[1748110894674,0.005,2562.3,2562.2,2.04243456]
[1748110894838,3.90774362,2562.3,2562.2,10.82973456]
[1748110899474,3.71975716,2562.3,2562.2,10.82973456]
[1748110905645,3.71975716,2562.3,2562.2,25.16773456]
[1748110906287,3.71975716,2562.3,2562.2,24.38043456]
[1748110907001,3.71975716,2562.3,2562.2,10.04243456]
[1748110907299,3.71975716,2562.3,2562.2,36.07443456]
[1748110911509,4.7460772,2562.4,2562.3,8.0]
[1748110912428,4.7460772,2562.4,2562.3,8.21766119]
[1748110916749,4.7460772,2562.4,2562.3,25.05766119]
[1748110919970,0.05,2562.9,2562.6,8.0]
[1748110920185,5.19682739,2563.9,2562.9,8.7606]
[1748110920186,3.90080005,2563.6,2562.9,8.7606]
[1748110920383,0.8164,2563.7,2563.2,1.82477337]
[1748110920658,3.90076454,2563.6,2563.5,1.82477337]
[1748110921455,3.90076454,2563.6,2563.5,2.04243456]
[1748110923170,1.96540032,2564.0,2563.5,2.43589786]
[1748110923409,1.96540032,2564.0,2563.9,11.64954674]
[1748110923600,2.08929017,2564.6,2564.1,0.7563]
[1748110923724,2.08929017,2564.6,2564.5,1.82477337]
[1748110923931,3.16199038,2565.1,2564.6,8.0]
[1748110924228,3.16199038,2565.1,2564.5,27.99714765]
[1748110924229,3.16199038,2565.1,2564.5,2.58107337]
[1748110924426,6.46001046,2564.7,2564.6,1.82477337]
[1748110924656,7.28221046,2564.7,2564.6,21.51677337]
[1748110924877,6.68623289,2564.7,2564.6,21.51677337]
[1748110926860,6.68623289,2564.7,2564.6,8.0]
[1748110927086,3.90046025,2563.8,2563.7,0.7597]
[1748110927373,3.90046025,2563.8,2563.7,21.73072289]
[1748110927577,3.90046025,2563.8,2563.7,22.09067136]
[1748110928136,3.90046025,2563.8,2563.7,10.40067136]
[1748110928361,3.90046025,2563.8,2563.7,22.09067136]
[1748110928573,3.90037729,2563.9,2563.8,8.0]
[1748110929075,3.90046025,2563.8,2563.7,2.04072289]
[1748110929238,0.8222,2564.4,2563.8,8.0]
[1748110929579,3.90030812,2563.9,2563.8,8.0]
[1748110929766,3.90030812,2563.9,2563.8,22.54]
[1748110930079,3.90030812,2563.9,2563.8,34.5887232]
[1748110930466,3.90030812,2563.9,2563.8,8.3597232]
[1748110930638,3.90030812,2563.9,2563.8,36.41349657]
[1748110932269,3.90020129,2564.0,2563.8,38.23826994]
[1748110932465,3.90020129,2564.0,2563.9,0.7597]
[1748110932666,3.87228098,2564.0,2563.9,0.7597]
[1748110933686,3.90030812,2563.9,2563.8,37.87854674]
[1748110933867,3.90030812,2563.9,2563.8,36.41330086]
[1748110935370,3.90030812,2563.9,2563.8,10.18430086]
[1748110935564,3.90030812,2563.9,2563.8,36.41030086]
[1748110935889,3.90030812,2563.9,2563.8,36.05077337]
[1748110936487,3.88030812,2563.9,2563.8,36.05077337]
[1748110936649,3.88030812,2563.9,2563.8,9.82477337]
[1748110936851,3.88030812,2563.9,2563.8,36.40934768]
[1748110938376,3.88030812,2563.9,2563.8,36.62511818]
[1748110939254,3.88030812,2563.9,2563.8,10.40011818]
[1748110939589,3.88030812,2563.9,2563.8,36.62511818]
[1748110939789,3.88030812,2563.9,2563.8,36.40934768]
[1748110939991,3.88030812,2563.9,2563.8,10.18434768]
[1748110940209,3.88030812,2563.9,2563.8,26.225]
[1748110940210,5.48055672,2563.9,2563.8,26.225]
[1748110940359,5.30055672,2563.9,2563.8,26.225]
[1748110940676,5.30055672,2563.9,2563.8,34.225]
[1748110941452,5.30055672,2563.9,2563.8,36.04977337]
[1748110941795,5.30055672,2563.9,2563.8,9.82477337]
[1748110942094,5.30055672,2563.9,2563.8,8.0]
[1748110942259,5.30055672,2563.9,2563.8,34.225]
[1748110942964,5.30055672,2563.9,2563.8,36.04977337]
[1748110944791,4.52250812,2563.9,2563.8,36.04977337]
[1748110948774,4.52250812,2563.9,2563.8,36.41148384]
[1748110949901,4.52250812,2563.9,2563.8,36.62873169]
[1748110953201,3.70030812,2563.9,2563.8,36.62873169]
[1748110954594,3.70030812,2563.9,2563.8,28.62873169]
[1748110956021,3.70030812,2563.9,2563.8,28.26702122]
[1748110956233,3.70030812,2563.9,2563.8,28.62952453]
[1748110957331,3.70030812,2563.9,2563.8,0.57975116]
[1748110957633,5.28685672,2563.9,2563.8,26.81475116]
[1748110959524,5.65118142,2563.9,2563.8,26.81475116]
[1748110959839,5.65118142,2563.9,2563.8,26.81675116]
[1748110960137,5.65118142,2563.9,2563.8,0.57975116]
[1748110960334,5.65118142,2563.9,2563.8,26.81675116]
[1748110960638,4.52680812,2563.9,2563.8,26.81675116]
[1748110965748,4.52680812,2563.9,2563.8,26.45424785]
[1748110966754,4.89129503,2563.9,2563.8,26.45424785]
[1748110968352,4.89129503,2563.9,2563.8,14.76624785]
[1748110968576,4.89129503,2563.9,2563.8,26.45424785]
[1748110972860,4.06479503,2563.9,2563.8,28.27902122]
[1748110973865,3.70030812,2563.9,2563.8,28.27902122]
[1748110978478,3.70030812,2563.9,2563.8,0.21724785]
[1748110978688,3.70030812,2563.9,2563.8,26.45424785]
[1748110980287,3.70030812,2563.9,2563.8,34.45424785]
[1748110980495,3.70030812,2563.9,2563.8,36.27902122]
[1748110988398,3.70030812,2563.9,2563.8,37.11182122]
[1748110992416,3.70030812,2563.9,2563.8,25.42382122]
[1748110992745,3.70030812,2563.9,2563.8,37.11182122]
[1748110994547,3.70030812,2563.9,2563.8,25.42382122]
[1748110994734,3.70030812,2563.9,2563.8,37.11082122]
[1748110996554,3.70030812,2563.9,2563.8,24.59102122]
[1748110996845,3.70030812,2563.9,2563.8,36.27802122]
[1748111000659,3.89369579,2564.0,2563.9,8.0]
[1748111001110,3.89369579,2564.0,2563.9,8.21724785]
[1748111002454,3.87638573,2564.0,2563.9,8.21724785]
[1748111010375,3.87638573,2564.0,2563.9,19.90324785]
[1748111013180,3.87638573,2564.0,2563.9,36.73224785]
[1748111016587,3.87638573,2564.0,2563.9,38.9287608]
[1748111017490,3.87638573,2564.0,2563.9,37.10398743]
[1748111017862,3.87638573,2564.0,2563.9,51.53698743]
[1748111021393,3.90002964,2564.1,2563.9,53.3617608]
[1748111021691,3.900273,2564.0,2563.9,53.3617608]
[1748111028935,3.900156,2564.0,2563.9,53.3617608]
[1748111038896,4.707056,2564.0,2563.9,0.58898743]
[1748111039099,4.707056,2564.0,2563.9,43.53598743]
[1748111039399,5.93286767,2564.0,2563.9,53.3607608]
[1748111039774,5.93286767,2564.0,2563.9,52.99412062]
[1748111040103,5.93286767,2564.0,2563.9,52.62238104]
[1748111040460,5.93286767,2564.0,2563.9,31.47824785]
[1748111040660,4.70130812,2563.9,2563.8,11.687]
[1748111040854,6.2237777,2563.9,2563.8,14.433]
[1748111041059,6.2237777,2563.9,2563.1,0.46821968]
[1748111041060,4.70237328,2563.2,2563.1,0.46821968]
[1748111041256,4.70237328,2563.2,2563.1,34.58821968]
[1748111041501,5.0674785,2563.2,2563.1,34.58821968]
[1748111041900,5.0674785,2563.2,2563.1,26.58821968]
[1748111042070,5.0674785,2563.2,2563.1,34.58821968]
[1748111042277,5.0674785,2563.2,2563.1,34.12]
[1748111042582,4.70237328,2563.2,2563.1,34.12]
[1748111044405,4.70237328,2563.2,2563.1,35.94398408]
[1748111046007,4.70237328,2563.2,2562.0,5.72717911]
[1748111046008,4.70313446,2562.7,2562.6,2.43339251]
[1748111046208,4.70313446,2562.7,2562.6,36.61539251]
[1748111046584,3.90213446,2562.7,2562.6,36.61539251]
[1748111047403,3.90213446,2562.7,2562.6,37.00506919]
[1748111049270,3.90213446,2562.7,2562.6,45.83806919]
[1748111053213,3.90213446,2562.7,2562.6,19.65606919]
[1748111053382,3.90213446,2562.7,2562.6,31.93940843]
[1748111053586,3.90213446,2562.7,2562.6,43.63040843]
[1748111056737,3.90213446,2562.7,2562.6,17.44240843]
[1748111057037,3.90213446,2562.7,2562.6,43.63240843]
[1748111057609,3.90213446,2562.7,2562.6,31.94040843]
[1748111057907,5.56364798,2562.7,2562.6,16.833]
[1748111058105,5.56364798,2562.7,2562.6,31.331]
[1748111058294,5.56364798,2562.7,2562.6,43.023]
[1748111062155,5.56364798,2562.7,2562.6,16.833]
[1748111062362,5.56364798,2562.7,2562.6,43.026]
[1748111064225,5.71364798,2562.7,2562.6,43.026]
[1748111065053,5.71364798,2562.7,2562.6,31.333]
[1748111065214,5.71364798,2562.7,2562.6,43.027]
[1748111066481,6.07611236,2562.7,2562.6,43.027]
[1748111067079,6.07611236,2562.7,2562.6,31.333]
[1748111067266,6.07611236,2562.7,2562.6,43.027]
[1748111070370,4.41459884,2562.7,2562.6,44.85098408]
[1748111071173,4.05213446,2562.7,2562.6,44.85098408]
[1748111073779,4.05213446,2562.7,2562.6,43.027]
[1748111074186,4.05213446,2562.7,2562.6,44.85098408]
[1748111074488,4.05213446,2562.7,2562.6,45.06903001]
[1748111074660,3.90213446,2562.7,2562.6,45.06903001]
[1748111077159,3.90149391,2563.2,2562.6,53.89913001]
[1748111077422,3.90191762,2562.9,2562.6,52.54561334]
[1748111077620,3.9019822,2562.8,2562.7,8.21804593]
[1748111078680,3.9019822,2562.8,2562.7,10.04203001]
[1748111084895,3.9019822,2562.8,2562.7,21.73503001]
[1748111087224,3.9019822,2562.8,2562.7,10.04203001]
[1748111087436,3.9019822,2562.8,2562.7,21.73503001]
[1748111099252,3.9019822,2562.8,2562.7,8.21804593]
[1748111099409,3.9019822,2562.8,2562.7,36.26303001]
[1748111104651,3.9019822,2562.8,2562.7,36.63573332]
[1748111105571,3.90113225,2563.4,2562.8,0.8147]
[1748111105728,3.90106889,2563.4,2563.3,1.82398408]
[1748111105930,3.90106889,2563.4,2563.3,28.04498408]
[1748111106342,3.90106889,2563.4,2563.3,28.26303001]
[1748111106343,4.26621797,2563.4,2563.3,28.26303001]
[1748111107991,4.26621797,2563.4,2563.3,28.65590663]
[1748111109690,3.90106889,2563.4,2563.3,28.65590663]
[1748111111791,3.90106889,2563.4,2563.3,16.96390663]
[1748111112095,3.90106889,2563.4,2563.3,28.65490663]
[1748111112404,5.59314745,2563.4,2563.3,14.70504593]
[1748111112563,5.59314745,2563.4,2563.3,26.39604593]
[1748111112757,5.59314745,2563.4,2563.3,14.70504593]
[1748111112964,5.95800588,2563.4,2563.3,26.178]
[1748111121324,5.09552732,2563.4,2563.3,26.178]
[1748111124643,5.09552732,2563.4,2563.3,26.179]
[1748111125250,5.09552732,2563.4,2563.3,43.016]
[1748111132382,5.09552732,2563.4,2563.3,31.324]
[1748111132569,5.09552732,2563.4,2563.3,43.016]
[1748111132968,5.79750558,2563.4,2563.3,43.016]
[1748111134485,5.09552732,2563.4,2563.3,43.016]
[1748111138606,5.09552732,2563.4,2563.3,31.324]
[1748111138909,5.09552732,2563.4,2563.3,42.951]
[1748111140509,13.2848056,2563.4,2563.3,16.837]
[1748111140689,15.14649796,2563.4,2563.3,31.259]
[1748111141001,15.69649796,2563.4,2563.3,31.259]
[1748111142381,26.3344305,2563.4,2563.3,31.259]
[1748111146412,29.87402188,2563.4,2563.3,31.259]
[1748111147111,12.45122108,2563.3,2563.2,11.692]
[1748111147409,19.13459825,2563.3,2563.2,26.116]
[1748111148016,19.49945668,2563.3,2563.2,26.116]
[1748111152323,19.49945668,2563.3,2563.2,14.424]
[1748111152526,19.49945668,2563.3,2563.2,26.118]
[1748111156823,19.49945668,2563.3,2563.2,26.119]
[1748111162741,16.3660726,2563.3,2563.2,26.119]
[1748111162944,12.41607951,2563.3,2563.2,26.119]
[1748111167383,12.41607951,2563.3,2563.0,16.84]
[1748111167384,3.90152549,2563.1,2563.0,16.84]
[1748111167679,5.72550957,2563.1,2563.0,42.96]
[1748111168166,14.090368,2563.1,2563.0,42.96]
[1748111168365,17.22472687,2563.1,2563.0,42.96]
[1748111170575,17.37472687,2563.1,2563.0,42.96]
[1748111171743,9.37472687,2563.1,2563.0,42.96]
[1748111172042,6.240368,2563.1,2563.0,42.96]
[1748111173969,6.27964628,2563.1,2563.0,31.265]
[1748111174178,6.790368,2563.1,2563.0,42.96]
[1748111175065,6.790368,2563.1,2563.0,16.84]
[1748111175372,6.790368,2563.1,2563.0,31.248]
[1748111175669,8.32472687,2563.1,2563.0,42.943]
[1748111179653,8.32472687,2563.1,2563.0,31.248]
[1748111179860,9.10122687,2563.1,2563.0,31.248]
[1748111180058,9.10122687,2563.1,2563.0,42.944]
[1748111184167,9.10122687,2563.1,2563.0,31.248]
[1748111184470,3.90243902,2562.5,2562.4,16.842]
[1748111184674,4.05243902,2562.5,2562.4,42.947]
[1748111185050,4.41729745,2562.5,2562.4,42.947]
[1748111189856,4.41729745,2562.5,2562.4,31.251]
[1748111190151,4.41729745,2562.5,2562.4,42.947]
[1748111191272,4.41729745,2562.5,2562.4,42.948]
[1748111191589,4.41729745,2562.5,2562.4,31.251]
[1748111191791,4.41729745,2562.5,2562.4,16.842]
[1748111192095,4.41729745,2562.5,2562.4,42.949]
[1748111192096,5.05943105,2562.5,2562.4,42.949]
[1748111192681,6.88341513,2562.5,2562.4,42.949]
[1748111192885,7.43341513,2562.5,2562.4,42.949]
[1748111193591,5.60943105,2562.5,2562.4,42.949]
[1748111196900,15.85943105,2562.5,2562.4,42.949]
[1748111200298,15.85943105,2562.5,2562.4,42.95]
[1748111204905,15.85943105,2562.5,2562.4,31.252]
[1748111205205,15.85943105,2562.5,2562.4,42.95]
[1748111207311,17.68341513,2562.5,2562.4,42.95]
[1748111209673,17.32031059,2562.5,2562.4,42.95]
[1748111210507,17.32031059,2562.5,2562.4,26.108]
[1748111220827,17.32031059,2562.5,2562.4,14.41]
[1748111221127,17.32031059,2562.5,2562.4,26.109]
[1748111230252,20.86152444,2562.5,2562.4,26.109]
[1748111235781,19.4006449,2562.5,2562.4,26.8914]
[1748111235930,18.2085113,2562.5,2562.4,26.8914]
[1748111237469,16.23852231,2562.5,2562.4,26.8914]
[1748111238771,16.23852231,2562.5,2562.4,26.109]
[1748111241061,14.66729745,2562.5,2562.4,14.41]
[1748111241268,14.66729745,2562.5,2562.4,26.108]
[1748111241476,16.86760824,2562.5,2562.4,26.108]
[1748111242241,3.90274362,2562.3,2562.2,16.846]
[1748111242444,6.31775987,2562.3,2562.2,42.932]
[1748111242651,6.46775987,2562.3,2562.2,42.932]
[1748111242869,9.10079414,2562.3,2562.2,42.932]
[1748111243666,19.35079414,2562.3,2562.2,16.846]
[1748111243867,20.10579414,2562.3,2562.2,42.932]
[1748111244373,20.10579414,2562.3,2562.2,31.234]
[1748111245296,23.45079414,2562.3,2562.2,31.234]
[1748111245613,24.20579414,2562.3,2562.2,31.234]
[1748111245908,4.45289594,2562.2,2562.1,0.05]
[1748111246113,4.45289594,2562.2,2562.1,14.438]
[1748111246114,8.40288903,2562.2,2562.1,14.438]
[1748111246901,8.76774746,2562.2,2562.1,14.438]
[1748111247210,39.963853,2562.2,2562.1,14.438]
[1748111248290,41.79090105,2562.2,2562.1,14.438]
[1748111248475,39.963853,2562.2,2562.1,14.438]
[1748111249201,41.53565138,2562.2,2562.1,14.438]
[1748111249704,4.45381011,2561.6,2561.5,11.7]
[1748111249872,7.38300536,2561.6,2561.5,26.089]
[1748111250196,7.34372708,2561.6,2561.5,26.089]
[1748111250401,5.51667903,2561.6,2561.5,26.089]
[1748111250596,5.88153746,2561.6,2561.5,26.089]
[1748111252995,6.27437731,2561.6,2561.5,14.389]
[1748111253196,6.27437731,2561.6,2561.5,26.09]
[1748111257000,6.27437731,2561.6,2561.5,26.091]
[1748111257725,6.22266471,2561.6,2561.5,26.091]
[1748111260199,8.04971276,2561.6,2561.5,26.091]
[1748111260378,8.04971276,2561.6,2561.5,14.389]
[1748111260582,8.04971276,2561.6,2561.5,26.091]
[1748111263339,8.04971276,2561.6,2561.3,16.848]
[1748111263643,5.73116298,2561.4,2561.3,16.848]
[1748111264138,16.49602141,2561.4,2561.3,16.848]
[1748111264348,17.80702141,2561.4,2561.3,16.848]
[1748111271852,4.45472471,2561.0,2560.9,11.704]
[1748111272051,4.60472471,2561.0,2560.9,26.097]
[1748111272353,6.00322009,2561.0,2560.9,26.097]
[1748111273453,6.00322009,2561.0,2560.9,14.393]
[1748111273642,6.00322009,2561.0,2560.9,26.097]
[1748111274155,6.00322009,2561.0,2560.9,14.393]
[1748111274331,7.83026814,2561.0,2560.9,26.097]
[1748111274718,3.90502967,2560.8,2560.7,0.7896]
[1748111275051,5.41404976,2560.8,2560.7,26.8886]
[1748111275554,5.77890819,2560.8,2560.7,26.8886]
[1748111276659,5.92890819,2560.8,2560.7,26.8886]
[1748111276865,4.4198881,2560.8,2560.7,26.8886]
[1748111279359,4.4198881,2560.8,2560.7,43.7436]
[1748111283165,4.4198881,2560.8,2560.7,32.0386]
[1748111283461,4.4198881,2560.8,2560.7,43.7436]
[1748111285971,4.4198881,2560.8,2560.7,32.0386]
[1748111286170,4.4198881,2560.8,2560.7,43.7436]
[1748111290589,4.4198881,2560.8,2560.7,51.7436]
[1748111292136,4.2698881,2560.8,2560.7,51.7436]
[1748111292839,4.2698881,2560.8,2560.7,51.96262412]
[1748111299442,4.2698881,2560.8,2560.7,43.7436]
[1748111311552,4.2698881,2560.8,2560.7,43.9625017]
[1748111315347,3.90502967,2560.8,2560.7,45.42453109]
[1748111315936,3.90502967,2560.8,2560.7,53.42453109]
[1748111317755,3.90502967,2560.8,2560.7,53.78947765]
[1748111334916,3.90594484,2560.2,2560.1,0.05]
[1748111335210,5.15922439,2560.2,2560.1,14.435]
[1748111335508,5.52413338,2560.2,2560.1,14.435]
[1748111336321,4.27085383,2560.2,2560.1,14.435]
[1748111336776,4.27085383,2560.2,2560.1,22.435]
[1748111338237,3.90594484,2560.2,2560.1,22.435]
[1748111339618,3.90594484,2560.2,2560.1,34.138]
[1748111340211,3.90594484,2560.2,2560.1,22.435]
[1748111340431,3.90594484,2560.2,2560.1,34.138]
[1748111344952,3.90594484,2560.2,2560.1,22.435]
[1748111345154,3.90594484,2560.2,2560.1,34.14]
[1748111345963,4.67844484,2560.2,2560.1,8.05]
[1748111346256,4.67844484,2560.2,2560.1,34.144]
[1748111348884,4.67844484,2560.2,2560.1,22.439]
[1748111349172,4.67844484,2560.2,2560.1,34.144]
[1748111349928,3.90594484,2560.2,2560.1,34.144]
[1748111359044,3.90594484,2560.2,2560.1,51.001]
[1748111364078,4.27086682,2560.2,2560.1,51.001]
[1748111367869,4.27086682,2560.2,2560.1,39.296]
[1748111368142,4.27086682,2560.2,2560.1,51.002]
[1748111368343,3.90594484,2560.2,2560.1,51.002]
[1748111369490,3.90594484,2560.2,2560.1,0.05]
[1748111369652,6.48692079,2560.2,2560.1,14.564]
[1748111369976,8.25899224,2560.2,2560.1,14.564]
[1748111371767,8.25899224,2560.2,2560.1,14.565]
[1748111372369,6.43201629,2560.2,2560.1,14.565]
[1748111372581,8.25899224,2560.2,2560.1,14.565]
[1748111374754,6.43201629,2560.2,2560.1,14.565]
[1748111383104,3.90625,2560.0,2559.9,11.708]
[1748111383404,5.33068884,2560.0,2559.9,26.226]
[1748111384203,5.69618658,2560.0,2559.9,26.226]
[1748111386014,4.27174774,2560.0,2559.9,26.226]
[1748111387184,3.90686044,2559.6,2558.8,0.77]
[1748111387389,3.90747108,2559.2,2558.9,28.571]
[1748111387714,3.90747108,2559.2,2559.1,14.746]
[1748111387916,4.27296882,2559.2,2559.1,14.746]
[1748111388470,3.90747108,2559.2,2559.1,14.746]
[1748111389510,3.90747108,2559.2,2559.1,26.456]
[1748111389673,4.27142838,2559.2,2559.1,26.456]
[1748111392917,3.90747108,2559.2,2559.1,26.456]
[1748111396323,3.90747108,2559.2,2559.1,34.456]
[1748111397149,3.90747108,2559.2,2559.1,35.272]
[1748111405447,3.90747108,2559.2,2559.1,8.866]
[1748111405651,4.70865822,2558.8,2558.7,14.697]
[1748111405851,3.90884571,2558.3,2558.2,17.33121968]
[1748111406060,3.90884571,2558.3,2558.2,43.73921968]
[1748111406351,3.90884571,2558.3,2558.2,51.73921968]
[1748111406734,3.90884571,2558.3,2558.2,43.73921968]
[1748111407434,3.90884571,2558.3,2558.2,51.271]
[1748111408555,3.90884571,2558.3,2558.2,53.56366123]
[1748111408763,3.90884571,2558.3,2558.2,52.0465]
[1748111410155,3.90884571,2558.3,2558.2,44.0465]
[1748111411463,3.90884571,2558.3,2558.2,44.0475]
[1748111412564,3.90884571,2558.3,2558.2,43.272]
[1748111414444,3.90884571,2558.3,2558.2,51.272]
[1748111415968,5.50870127,2558.3,2558.2,31.818]
[1748111416184,5.50870127,2558.3,2558.2,43.531]
[1748111416968,5.87276088,2558.3,2558.2,43.531]
[1748111419330,5.87276088,2558.3,2558.2,43.532]
[1748111422174,5.50870127,2558.3,2558.2,43.532]
[1748111422478,3.90884571,2558.3,2558.2,51.532]
[1748111424807,3.90884571,2558.3,2558.2,43.532]
[1748111428916,5.25575407,2558.2,2557.6,0.6108306]
[1748111429122,5.25575407,2558.2,2556.5,1.26621968]
[1748111429123,3.91052713,2557.2,2557.1,15.007]
[1748111429603,3.91052713,2557.2,2557.1,0.05]
[1748111429774,5.7746765,2557.2,2557.1,15.007]
[1748111429978,6.68873611,2557.2,2557.1,0.05]
[1748111430173,6.72801439,2557.2,2557.1,15.007]
[1748111430497,6.68873611,2557.2,2557.1,15.007]
[1748111432312,6.68873611,2557.2,2557.1,15.01]
[1748111432313,14.68873611,2557.2,2557.1,15.01]
[1748111433030,16.51571206,2557.2,2557.1,15.01]
[1748111433588,16.84165323,2557.2,2557.1,15.01]
[1748111434325,16.47759362,2557.2,2557.1,15.01]
[1748111437420,16.62759362,2557.2,2557.1,15.01]
[1748111439429,3.91205695,2556.2,2556.1,0.05]
[1748111439629,3.91205695,2556.2,2556.1,26.738]
[1748111441531,3.91205695,2556.2,2556.1,27.5658]
[1748111446035,3.91205695,2556.2,2556.1,35.5658]
[1748111448122,3.91205695,2556.2,2556.1,37.39277595]
[1748111448741,3.91205695,2556.2,2556.1,35.5658]
[1748111449104,3.91205695,2556.2,2556.1,52.4478]
[1748111450928,3.91205695,2556.2,2556.1,52.4498]
[1748111457715,3.91205695,2556.2,2556.1,54.27677595]
[1748111457922,3.91187451,2556.4,2556.2,8.0]
[1748111458155,3.91159788,2556.5,2556.4,8.8258]
[1748111465573,3.91159788,2556.5,2556.4,20.5488]
[1748111467641,3.91159788,2556.5,2556.4,0.8258]
[1748111467840,3.91159788,2556.5,2556.4,8.0]
[1748111468041,3.91159788,2556.5,2556.4,23.245]
[1748111468042,4.66919788,2556.5,2556.4,23.245]
[1748111468249,4.66919788,2556.5,2556.4,15.245]
[1748111468456,4.66919788,2556.5,2556.4,26.967]
[1748111468675,4.66919788,2556.5,2556.4,34.967]
[1748111470992,5.03393247,2556.5,2556.4,34.968]
[1748111472795,4.27633247,2556.5,2556.4,34.968]
[1748111473491,3.91159788,2556.5,2556.4,34.968]
[1748111474655,3.91159788,2556.5,2556.4,23.246]
[1748111474855,3.91159788,2556.5,2556.4,34.969]
[1748111477564,3.91159788,2556.5,2556.1,19.54897595]
[1748111477565,3.91205695,2556.2,2556.1,0.05]
[1748111477792,3.91205695,2556.2,2556.1,43.747]
[1748111477992,3.91205695,2556.2,2556.1,24.931]
[1748111478196,3.91205695,2556.2,2556.1,51.747]
[1748111478362,3.91205695,2556.2,2556.1,43.747]
[1748111478563,4.85427966,2556.2,2556.1,43.747]
[1748111478765,4.85427966,2556.2,2556.1,51.747]
[1748111479005,3.91205695,2556.2,2556.1,51.747]
[1748111479503,3.91205695,2556.2,2556.1,54.36287595]
[1748111481903,3.91205695,2556.2,2556.1,52.5359]
[1748111482888,3.91205695,2556.2,2556.1,40.025]
[1748111483071,3.91205695,2556.2,2556.1,51.748]
[1748111483497,5.16343066,2556.2,2556.1,51.748]
[1748111487105,5.16343066,2556.2,2556.1,40.025]
[1748111487510,5.16343066,2556.2,2556.1,43.748]
[1748111488713,5.16343066,2556.2,2556.1,43.749]
[1748111490128,5.16343066,2556.2,2556.1,32.025]
[1748111490335,5.16343066,2556.2,2556.1,43.749]
[1748111493800,5.31343066,2556.2,2556.1,43.75]